fUST/lending_fUST_20240801
["ID","MTS","AMOUNT","RATE_DAILY","PERIOD"]
[333775486,1722480405320,665.77320378,9.999e-05,2]
[333775487,1722480408149,-220.69148962,0.00011989,2]
[333775489,1722480417737,204.57207469,9.999e-05,2]
[333775542,1722480632414,-300.0,0.00011989,2]
[333775544,1722480632424,-300.0,0.00011989,2]
[333775547,1722480632435,-24890.0,0.0001199,2]
[333775549,1722480632445,-501.78135272,0.00012119,2]
[333775551,1722480632456,-158.250046,0.00012549,2]
[333775564,1722480632580,-158.250046,0.00012604,2]
[333775566,1722480632591,-158.250046,0.00012658,2]
[333775568,1722480632601,-158.250046,0.00012713,2]
[333775570,1722480632611,-158.250046,0.00012767,2]
[333775572,1722480632621,-158.250046,0.00012822,2]
[333775574,1722480632632,-158.250046,0.00012876,2]
[333775576,1722480632644,-158.250046,0.00012931,2]
[333775578,1722480632655,-158.250046,0.00012985,2]
[333775580,1722480632666,-183.422545,0.00012986,2]
[333775582,1722480632676,-158.250046,0.0001304,2]
[333775584,1722480632686,-158.250046,0.00013094,2]
[333775586,1722480632695,-158.250046,0.00013149,2]
[333775588,1722480632705,-420.0,0.00013188,2]
[333775590,1722480632714,-158.250046,0.00013203,2]
[333775592,1722480632723,-2250.19152347,0.00013598,2]
[333775594,1722480632734,-2250.19152345,0.00013667,2]
[333775595,1722480632745,-30605.66108485,0.00013688,2]
[333775596,1722480632759,-1016.7860968,0.00013688,2]
[333775606,1722480638110,-15672.41338843,0.00013688,2]
[333775608,1722480638121,-346.94987823,0.00013688,2]
[333775610,1722480638133,-3421.82264615,0.00013688,2]
[333775636,1722480638371,-32323.61399904,0.00013688,2]
[333775638,1722480638381,-503.31,0.00013697,2]
[333775640,1722480638391,-503.31,0.00013697,2]
[333775642,1722480638401,-440.67058656,0.00013698,2]
[333775670,1722480641802,-2593.21303915,0.00013567,2]
[333775672,1722480641813,-59.70146247,0.00013698,2]
[333775673,1722480641824,-501.59683971,0.00013698,2]
[333775674,1722480641834,-500.80541558,0.00013698,2]
[333775675,1722480641844,-500.0,0.00013698,2]
[333775676,1722480641854,-500.0,0.00013698,2]
[333775677,1722480641865,-502.40879419,0.00013698,2]
[333775678,1722480641875,-500.0,0.00013698,2]
[333775679,1722480641885,-506.23652616,0.00013698,2]
[333775680,1722480641895,-500.0,0.00013698,2]
[333775681,1722480641906,-500.0,0.00013698,2]
[333775682,1722480641916,-500.0,0.00013698,2]
[333775683,1722480641928,-751.26,0.00013698,2]
[333775684,1722480641938,-500.0,0.00013698,2]
[333775685,1722480641947,-500.0,0.00013698,2]
[333775686,1722480641957,-500.0,0.00013698,2]
[333775687,1722480641967,-503.65049693,0.00013698,2]
[333775688,1722480641978,-500.0,0.00013698,2]
[333775689,1722480641992,-500.0,0.00013698,2]
[333775690,1722480642005,-500.0,0.00013698,2]
[333775691,1722480642017,-506.56582203,0.00013698,2]
[333775692,1722480642028,-500.0,0.00013698,2]
[333775693,1722480642038,-500.0,0.00013698,2]
[333775694,1722480642047,-500.0,0.00013698,2]
[333775695,1722480642056,-503.47977507,0.00013698,2]
[333775696,1722480642065,-506.43917156,0.00013698,2]
[333775697,1722480642074,-501.73399391,0.00013698,2]
[333775698,1722480642084,-1598.53,0.00013698,2]
[333775699,1722480642094,-500.0,0.00013698,2]
[333775700,1722480642104,-500.0,0.00013698,2]
[333775701,1722480642115,-500.0,0.00013698,2]
[333775702,1722480642233,-500.0,0.00013698,2]
[333775703,1722480642246,-507.17993449,0.00013698,2]
[333775704,1722480642255,-495.58044174,0.00013698,2]
[333775705,1722480642265,-176.439896,0.00013698,2]
[333775706,1722480642274,-500.0,0.00013698,2]
[333775707,1722480642286,-501.21295565,0.00013698,2]
[333775708,1722480642297,-508.48993209,0.00013698,2]
[333775709,1722480642308,-500.0,0.00013698,2]
[333775710,1722480642320,-500.0,0.00013698,2]
[333775711,1722480642329,-370.56269579,0.00013698,2]
[333775712,1722480642339,-500.0,0.00013698,2]
[333775713,1722480642349,-500.0,0.00013698,2]
[333775714,1722480642361,-507.51522867,0.00013698,2]
[333775715,1722480642372,-505.14401387,0.00013698,2]
[333775716,1722480642382,-500.0,0.00013698,2]
[333775717,1722480642393,-539.71,0.00013698,2]
[333775718,1722480642403,-500.0,0.00013698,2]
[333775719,1722480642412,-500.0,0.00013698,2]
[333775720,1722480642423,-500.0,0.00013698,2]
[333775721,1722480642432,-500.0,0.00013698,2]
[333775722,1722480642442,-703.8,0.00013698,2]
[333775723,1722480642451,-500.0,0.00013698,2]
[333775724,1722480642461,-500.0,0.00013698,2]
[333775725,1722480642471,-735.64,0.00013698,2]
[333775726,1722480642481,-500.0,0.00013698,2]
[333775727,1722480642492,-500.0,0.00013698,2]
[333775728,1722480642505,-1018.47,0.00013698,2]
[333775729,1722480642514,-500.0,0.00013698,2]
[333775730,1722480642523,-500.0,0.00013698,2]
[333775732,1722480642533,-500.0,0.00013698,2]
[333775733,1722480642544,-500.0,0.00013698,2]
[333775734,1722480642554,-612.94,0.00013698,2]
[333775735,1722480642563,-500.0,0.00013698,2]
[333775736,1722480642575,-600.31550714,0.00013698,2]
[333775737,1722480642587,-503.42779808,0.00013698,2]
[333775738,1722480642597,-510.60607783,0.00013698,2]
[333775739,1722480642610,-500.0,0.00013698,2]
[333775740,1722480642620,-500.0,0.00013698,2]
[333775741,1722480642631,-500.0,0.00013698,2]
[333775742,1722480642640,-500.0,0.00013698,2]
[333775743,1722480642651,-504.71019764,0.00013698,2]
[333775744,1722480642663,-500.0,0.00013698,2]
[333775745,1722480642673,-500.0,0.00013698,2]
[333775746,1722480642682,-500.0,0.00013698,2]
[333775747,1722480642693,-500.0,0.00013698,2]
[333775748,1722480642702,-500.0,0.00013698,2]
[333775749,1722480642712,-2738.47,0.00013698,2]
[333775750,1722480642722,-978.91,0.00013698,2]
[333775751,1722480642732,-500.0,0.00013698,2]
[333775753,1722480642741,-500.0,0.00013698,2]
[333775754,1722480642751,-504.18482772,0.00013698,2]
[333775756,1722480642760,-258.98952088,0.00013698,2]
[333775758,1722480642770,-276.98765039,0.00013698,2]
[333775759,1722480642779,-500.0,0.00013698,2]
[333775760,1722480642788,-588.43,0.00013698,2]
[333775761,1722480642798,-500.0,0.00013698,2]
[333775762,1722480642807,-643.81,0.00013698,2]
[333775763,1722480642816,-502.34040615,0.00013698,2]
[333775764,1722480642825,-890.35,0.00013698,2]
[333775765,1722480642834,-505.08837616,0.00013698,2]
[333775766,1722480642844,-512.31230386,0.00013698,2]
[333775767,1722480642854,-504.04210718,0.00013698,2]
[333775768,1722480642863,-507.3905992,0.00013698,2]
[333775769,1722480642874,-506.16941099,0.00013698,2]
[333775770,1722480642886,-500.0,0.00013698,2]
[333775771,1722480642897,-551.83002644,0.00013698,2]
[333775772,1722480642906,-500.0,0.00013698,2]
[333775773,1722480642916,-500.0,0.00013698,2]
[333775774,1722480642926,-500.0,0.00013698,2]
[333775775,1722480642935,-504.55586087,0.00013698,2]
[333775777,1722480642947,-500.14611743,0.00013698,2]
[333775779,1722480642958,-500.0,0.00013698,2]
[333775781,1722480642968,-505.2784371,0.00013698,2]
[333775782,1722480642978,-503.37684485,0.00013698,2]
[333775783,1722480642990,-500.0,0.00013698,2]
[333775784,1722480643000,-500.0,0.00013698,2]
[333775785,1722480643010,-500.0,0.00013698,2]
[333775786,1722480643021,-1044.16,0.00013698,2]
[333775787,1722480643031,-535.3,0.00013698,2]
[333775788,1722480643042,-500.0,0.00013698,2]
[333775789,1722480643052,-500.0,0.00013698,2]
[333775790,1722480643062,-504.63874163,0.00013698,2]
[333775791,1722480643073,-500.0,0.00013698,2]
[333775792,1722480643083,-506.19236917,0.00013698,2]
[333775793,1722480643093,-568.07,0.00013698,2]
[333775794,1722480643105,-500.0,0.00013698,2]
[333775795,1722480643116,-2223.44,0.00013698,2]
[333775796,1722480643127,-504.61685954,0.00013698,2]
[333775797,1722480643138,-501.7600935,0.00013698,2]
[333775798,1722480643148,-500.0,0.00013698,2]
[333775799,1722480643157,-500.0,0.00013698,2]
[333775800,1722480643169,-500.0,0.00013698,2]
[333775801,1722480643179,-658.02,0.00013698,2]
[333775802,1722480643189,-521.28259252,0.00013698,2]
[333775803,1722480643200,-500.0,0.00013698,2]
[333775805,1722480643210,-500.0,0.00013698,2]
[333775806,1722480643219,-500.0,0.00013698,2]
[333775807,1722480643228,-1468.28,0.00013698,2]
[333775808,1722480643239,-500.0,0.00013698,2]
[333775809,1722480643248,-500.0,0.00013698,2]
[333775810,1722480643258,-3871.48,0.00013698,2]
[333775811,1722480643266,-500.0,0.00013698,2]
[333775812,1722480643275,-1215.37,0.00013698,2]
[333775813,1722480643284,-500.0,0.00013698,2]
[333775814,1722480643294,-1081.71,0.00013698,2]
[333775815,1722480643303,-503.48874314,0.00013698,2]
[333775816,1722480643313,-500.0,0.00013698,2]
[333775817,1722480643323,-500.0,0.00013698,2]
[333775818,1722480643334,-829.93,0.00013698,2]
[333775819,1722480643346,-500.0,0.00013698,2]
[333775820,1722480643356,-2085.52,0.00013698,2]
[333775821,1722480643368,-500.0,0.00013698,2]
[333775822,1722480643379,-928.99,0.00013698,2]
[333775824,1722480643390,-505.96664735,0.00013698,2]
[333775825,1722480643401,-500.0,0.00013698,2]
[333775826,1722480643412,-504.61701673,0.00013698,2]
[333775827,1722480643422,-1139.83,0.00013698,2]
[333775828,1722480643433,-500.0,0.00013698,2]
[333775829,1722480643445,-692.17,0.00013698,2]
[333775830,1722480643454,-598.51,0.00013698,2]
[333775831,1722480643464,-500.0,0.00013698,2]
[333775832,1722480643475,-500.0,0.00013698,2]
[333775833,1722480643486,-500.0,0.00013698,2]
[333775834,1722480643499,-500.0,0.00013698,2]
[333775835,1722480643508,-982.43,0.00013698,2]
[333775836,1722480643519,-500.0,0.00013698,2]
[333775837,1722480643529,-500.0,0.00013698,2]
[333775838,1722480643539,-503.90173744,0.00013698,2]
[333775839,1722480643550,-500.0,0.00013698,2]
[333775840,1722480643559,-500.0,0.00013698,2]
[333775841,1722480643573,-483.10143405,0.00013698,2]
[333775842,1722480643583,-502.84856858,0.00013698,2]
[333775843,1722480643594,-500.0,0.00013698,2]
[333775844,1722480643606,-500.0,0.00013698,2]
[333775845,1722480643615,-1007.88,0.00013698,2]
[333775846,1722480643624,-500.0,0.00013698,2]
[333775847,1722480643634,-500.0,0.00013698,2]
[333775848,1722480643644,-609.66,0.00013698,2]
[333775849,1722480643655,-1201.11,0.00013698,2]
[333775850,1722480643665,-726.59,0.00013698,2]
[333775851,1722480643676,-582.3,0.00013698,2]
[333775852,1722480643685,-500.0,0.00013698,2]
[333775853,1722480643695,-500.0,0.00013698,2]
[333775854,1722480643704,-505.93990243,0.00013698,2]
[333775855,1722480643714,-500.0,0.00013698,2]
[333775856,1722480643724,-516.43955066,0.00013698,2]
[333775857,1722480643734,-1677.14,0.00013698,2]
[333775858,1722480643745,-1454.64,0.00013698,2]
[333775859,1722480643756,-1454.64,0.00013698,2]
[333775860,1722480643765,-1454.64,0.00013698,2]
[333775861,1722480643775,-1454.64,0.00013698,2]
[333775863,1722480643787,-500.0,0.00013698,2]
[333775865,1722480643797,-602.68513681,0.00013698,2]
[333775867,1722480643807,-185.19096211,0.00013698,2]
[333775868,1722480643818,-500.0,0.00013698,2]
[333775869,1722480643828,-977.27,0.00013698,2]
[333775870,1722480643838,-504.73016029,0.00013698,2]
[333775871,1722480643848,-2094.43,0.00013698,2]
[333775872,1722480643858,-536.9,0.00013698,2]
[333775873,1722480643867,-737.92,0.00013698,2]
[333775874,1722480643877,-500.0,0.00013698,2]
[333775875,1722480643887,-1233.15,0.00013698,2]
[333775876,1722480643897,-1067.41,0.00013698,2]
[333775877,1722480643906,-885.3,0.00013698,2]
[333775878,1722480643915,-504.69653273,0.00013698,2]
[333775879,1722480643925,-500.0,0.00013698,2]
[333775880,1722480643936,-586.02,0.00013698,2]
[333775881,1722480643945,-500.0,0.00013698,2]
[333775882,1722480643955,-1103.95,0.00013698,2]
[333775883,1722480643964,-502.97001153,0.00013698,2]
[333775884,1722480643973,-650.98,0.00013698,2]
[333775885,1722480643982,-1677.9,0.00013698,2]
[333775886,1722480643993,-500.0,0.00013698,2]
[333775887,1722480644002,-505.35197728,0.00013698,2]
[333775888,1722480644012,-505.47799911,0.00013698,2]
[333775889,1722480644021,-543.32041875,0.00013698,2]
[333775890,1722480644030,-506.98880212,0.00013698,2]
[333775891,1722480644040,-500.0,0.00013698,2]
[333775892,1722480644051,-644.04,0.00013698,2]
[333775893,1722480644061,-500.0,0.00013698,2]
[333775894,1722480644070,-500.0,0.00013698,2]
[333775895,1722480644080,-500.0,0.00013698,2]
[333775896,1722480644089,-500.0,0.00013698,2]
[333775897,1722480644098,-500.0,0.00013698,2]
[333775898,1722480644107,-504.80382824,0.00013698,2]
[333775899,1722480644117,-505.58908851,0.00013698,2]
[333775900,1722480644126,-374.90957344,0.00013698,2]
[333775901,1722480644136,-506.21298736,0.00013698,2]
[333775902,1722480644148,-517.32,0.00013698,2]
[333775903,1722480644157,-505.0785082,0.00013698,2]
[333775904,1722480644168,-862.6,0.00013698,2]
[333775905,1722480644179,-508.0232725,0.00013698,2]
[333775906,1722480644190,-502.68024507,0.00013698,2]
[333775907,1722480644199,-500.0,0.00013698,2]
[333775908,1722480644210,-825.41,0.00013698,2]
[333775909,1722480644219,-5877.26,0.00013698,2]
[333775910,1722480644228,-869.81,0.00013698,2]
[333775911,1722480644241,-602.08,0.00013698,2]
[333775912,1722480644251,-500.0,0.00013698,2]
[333775913,1722480644260,-500.0,0.00013698,2]
[333775914,1722480644270,-500.0,0.00013698,2]
[333775915,1722480644279,-5862.13,0.00013698,2]
[333775916,1722480644289,-500.0,0.00013698,2]
[333775917,1722480644298,-500.0,0.00013698,2]
[333775918,1722480644308,-961.591102,0.00013699,2]
[333775919,1722480644318,-3000.0,0.00013699,2]
[333775920,1722480644327,-240.39431555,0.00013699,2]
[333775921,1722480644336,-150.112233,0.000137,2]
[333775922,1722480644345,-5308.97285634,0.00013708,2]
[333775923,1722480644355,-2250.19152345,0.00013735,2]
[333775924,1722480644364,-150.112233,0.000138,2]
[333775925,1722480644373,-2250.19152345,0.00013804,2]
[333775926,1722480644383,-223.793758,0.00013804,2]
[333775927,1722480644393,-433.767581,0.00013804,2]
[333775928,1722480644403,-223.793758,0.00013804,2]
[333775929,1722480644415,-433.767581,0.00013804,2]
[333775930,1722480644427,-288.9961,0.00013804,2]
[333775931,1722480644437,-288.9961,0.00013804,2]
[333775932,1722480644447,-1454.64,0.00013866,2]
[333775933,1722480644457,-2250.19152345,0.00013872,2]
[333775934,1722480644466,-2171.21354879,0.00013872,2]
[333775935,1722480644562,-150.0,0.00013915,2]
[333775936,1722480644573,-506.0,0.00013915,2]
[333775937,1722480644582,-1410.0,0.00013915,2]
[333775938,1722480644592,-251.183,0.00013915,2]
[333775939,1722480644603,-151.0,0.00013922,2]
[333775940,1722480644615,-151.0,0.00013922,2]
[333775941,1722480644624,-500.0,0.0001395,2]
[333775942,1722480644634,-189.73209095,0.0001395,2]
[333775943,1722480644643,-522.3229211,0.0001395,2]
[333775944,1722480644653,-500.0,0.0001395,2]
[333775945,1722480644663,-500.0,0.0001395,2]
[333775946,1722480644673,-179.66621752,0.0001395,2]
[333775947,1722480644683,-151.0,0.00013951,2]
[333775948,1722480644693,-174.815118,0.00013951,2]
[333775949,1722480644703,-174.815118,0.00013951,2]
[333775950,1722480644712,-577.314512,0.00013951,2]
[333775951,1722480644723,-577.314512,0.00013951,2]
[333775952,1722480644732,-341.046348,0.00013951,2]
[333775953,1722480644744,-483.427735,0.00013951,2]
[333775954,1722480644754,-341.046348,0.00013951,2]
[333775955,1722480644764,-483.427735,0.00013951,2]
[333775956,1722480644774,-176.659608,0.00013951,2]
[333775957,1722480644785,-176.659608,0.00013951,2]
[333775958,1722480644796,-151.0,0.00013951,2]
[333775959,1722480644807,-151.0,0.00013951,2]
[333775960,1722480644817,-151.0,0.00013951,2]
[333775961,1722480644828,-154.575224,0.00013951,2]
[333775962,1722480644837,-151.0,0.00013951,2]
[333775963,1722480644846,-151.673486,0.00013951,2]
[333775964,1722480644856,-392.655776,0.00013951,2]
[333775965,1722480644866,-392.655776,0.00013951,2]
[333775966,1722480644876,-27795.7490312,0.00013952,2]
[333775967,1722480644885,-503.31,0.00013959,2]
[333775968,1722480644895,-1454.64,0.00013959,2]
[333775969,1722480644904,-504.17786989,0.0001396,2]
[333775970,1722480644913,-500.0,0.0001396,2]
[333775971,1722480644923,-500.0,0.0001396,2]
[333775972,1722480644933,-505.41895099,0.0001396,2]
[333775973,1722480644944,-504.88825234,0.0001396,2]
[333775974,1722480644955,-151.0,0.0001396,2]
[333775975,1722480644964,-503.94988963,0.0001396,2]
[333775976,1722480644974,-1528.36,0.0001396,2]
[333775977,1722480644986,-151.0,0.00013961,2]
[333775978,1722480644998,-151.0,0.00013961,2]
[333775979,1722480645009,-194.045772,0.00013961,2]
[333775980,1722480645020,-194.045772,0.00013961,2]
[333775981,1722480645030,-151.0,0.00013961,2]
[333775982,1722480645040,-151.0,0.00013961,2]
[333775983,1722480645050,-273.47563,0.00013961,2]
[333775984,1722480645059,-151.0,0.00013961,2]
[333775985,1722480645068,-503.18615198,0.00013961,2]
[333775986,1722480645077,-503.31,0.00013961,2]
[333775987,1722480645087,-1454.64,0.00013961,2]
[333775988,1722480645096,-840.15,0.00013961,2]
[333775989,1722480645105,-4664.39,0.00013961,2]
[333775990,1722480645114,-27795.7490312,0.00013962,2]
[333775991,1722480645122,-179.48279232,0.00013962,5]
[333775992,1722480645131,-151.0,0.00013962,2]
[333775993,1722480645140,-152.679109,0.00013962,2]
[333775994,1722480645149,-194.045772,0.00013962,2]
[333775995,1722480645158,-194.045772,0.00013962,2]
[333775996,1722480645167,-151.0,0.00013962,2]
[333775997,1722480645176,-151.0,0.00013962,2]
[333775998,1722480645186,-174.815118,0.00013962,2]
[333775999,1722480645195,-174.815118,0.00013962,2]
[333776000,1722480645206,-151.0,0.00013962,2]
[333776001,1722480645216,-577.314512,0.00013962,2]
[333776002,1722480645226,-577.314512,0.00013962,2]
[333776003,1722480645235,-341.046348,0.00013962,2]
[333776004,1722480645249,-483.427735,0.00013962,2]
[333776005,1722480645258,-341.046348,0.00013962,2]
[333776006,1722480645267,-483.427735,0.00013962,2]
[333776007,1722480645280,-176.659608,0.00013962,2]
[333776008,1722480645289,-176.659608,0.00013962,2]
[333776009,1722480645298,-152.133188,0.00013962,2]
[333776010,1722480645306,-151.0,0.00013962,2]
[333776011,1722480645315,-151.0,0.00013962,2]
[333776012,1722480645324,-151.0,0.00013962,2]
[333776013,1722480645334,-392.655776,0.00013962,2]
[333776014,1722480645343,-392.655776,0.00013962,2]
[333776015,1722480645352,-223.793758,0.00013962,2]
[333776016,1722480645361,-433.767581,0.00013962,2]
[333776017,1722480645371,-223.793758,0.00013962,2]
[333776018,1722480645380,-433.767581,0.00013962,2]
[333776019,1722480645390,-223.793758,0.00013962,2]
[333776020,1722480645400,-223.793758,0.00013962,2]
[333776021,1722480645410,-433.767581,0.00013962,2]
[333776022,1722480645420,-433.767581,0.00013962,2]
[333776023,1722480645430,-288.9961,0.00013962,2]
[333776024,1722480645439,-288.9961,0.00013962,2]
[333776025,1722480645451,-288.9961,0.00013962,2]
[333776026,1722480645460,-288.9961,0.00013962,2]
[333776027,1722480645471,-55591.4980623,0.00013962,2]
[333776028,1722480645481,-151.0,0.00013971,2]
[333776029,1722480645492,-151.0,0.00013971,2]
[333776030,1722480645505,-151.0,0.00013971,2]
[333776031,1722480645516,-503.31,0.00013971,2]
[333776032,1722480645526,-503.31,0.00013971,2]
[333776033,1722480645536,-1454.64,0.00013971,2]
[333776034,1722480645546,-1454.64,0.00013971,2]
[333776035,1722480645555,-1454.64,0.00013971,2]
[333776036,1722480645565,-49633.69702813,0.00013972,5]
[333776037,1722480645575,-151.0,0.00013972,2]
[333776038,1722480645585,-151.0,0.00013972,2]
[333776039,1722480645595,-500.0,0.00013972,2]
[333776040,1722480645605,-500.0,0.00013972,2]
[333776041,1722480645615,-500.0,0.00013972,2]
[333776042,1722480645626,-500.0,0.00013972,2]
[333776043,1722480645636,-500.0,0.00013972,2]
[333776044,1722480645647,-751.26,0.00013972,2]
[333776045,1722480645657,-151.0,0.00013972,2]
[333776046,1722480645668,-500.0,0.00013972,2]
[333776047,1722480645679,-502.1247299,0.00013972,2]
[333776048,1722480645691,-469.38675127,0.00013972,2]
[333776049,1722480645703,-156.375813,0.00013972,2]
[333776050,1722480645714,-500.0,0.00013972,2]
[333776051,1722480645725,-569.52098236,0.00013972,2]
[333776052,1722480645735,-1598.53,0.00013972,2]
[333776053,1722480645748,-500.0,0.00013972,2]
[333776054,1722480645759,-509.54019895,0.00013972,2]
[333776055,1722480645769,-500.0,0.00013972,2]
[333776056,1722480645780,-500.0,0.00013972,2]
[333776057,1722480645791,-151.0,0.00013972,2]
[333776058,1722480645802,-151.0,0.00013972,2]
[333776059,1722480645813,-183.175316,0.00013972,2]
[333776060,1722480645823,-151.0,0.00013972,2]
[333776061,1722480645834,-500.0,0.00013972,2]
[333776062,1722480645843,-500.0,0.00013972,2]
[333776063,1722480645852,-505.79152074,0.00013972,2]
[333776064,1722480645862,-500.0,0.00013972,2]
[333776065,1722480645872,-539.71,0.00013972,2]
[333776066,1722480645883,-500.0,0.00013972,2]
[333776067,1722480645894,-512.84578755,0.00013972,2]
[333776068,1722480645905,-703.8,0.00013972,2]
[333776069,1722480645915,-500.0,0.00013972,2]
[333776070,1722480645926,-735.64,0.00013972,2]
[333776071,1722480645935,-500.0,0.00013972,2]
[333776072,1722480645944,-1018.47,0.00013972,2]
[333776073,1722480645953,-151.0,0.00013972,2]
[333776074,1722480645963,-505.33346437,0.00013972,2]
[333776075,1722480645972,-612.94,0.00013972,2]
[333776076,1722480645981,-500.0,0.00013972,2]
[333776077,1722480645990,-194.045772,0.00013972,2]
[333776078,1722480645999,-506.29276197,0.00013972,2]
[333776079,1722480646008,-194.045772,0.00013972,2]
[333776080,1722480646018,-507.29826954,0.00013972,2]
[333776081,1722480646027,-151.0,0.00013972,2]
[333776082,1722480646036,-151.0,0.00013972,2]
[333776083,1722480646045,-500.0,0.00013972,2]
[333776084,1722480646055,-500.0,0.00013972,2]
[333776085,1722480646065,-500.0,0.00013972,2]
[333776086,1722480646074,-151.0,0.00013972,2]
[333776087,1722480646083,-2738.47,0.00013972,2]
[333776088,1722480646093,-151.0,0.00013972,2]
[333776089,1722480646102,-978.91,0.00013972,2]
[333776090,1722480646112,-500.0,0.00013972,2]
[333776091,1722480646121,-174.815118,0.00013972,2]
[333776092,1722480646130,-174.815118,0.00013972,2]
[333776093,1722480646139,-151.0,0.00013972,2]
[333776094,1722480646149,-588.43,0.00013972,2]
[333776095,1722480646159,-500.0,0.00013972,2]
[333776096,1722480646168,-643.81,0.00013972,2]
[333776097,1722480646177,-577.314512,0.00013972,2]
[333776098,1722480646187,-890.35,0.00013972,2]
[333776099,1722480646196,-577.314512,0.00013972,2]
[333776100,1722480646206,-341.046348,0.00013972,2]
[333776101,1722480646215,-483.427735,0.00013972,2]
[333776102,1722480646224,-341.046348,0.00013972,2]
[333776103,1722480646234,-483.427735,0.00013972,2]
[333776104,1722480646245,-500.0,0.00013972,2]
[333776105,1722480646255,-500.0,0.00013972,2]
[333776106,1722480646263,-176.659608,0.00013972,2]
[333776107,1722480646273,-176.659608,0.00013972,2]
[333776108,1722480646282,-500.0,0.00013972,2]
[333776109,1722480646291,-151.0,0.00013972,2]
[333776110,1722480646300,-500.0,0.00013972,2]
[333776111,1722480646309,-151.0,0.00013972,2]
[333776112,1722480646318,-1044.16,0.00013972,2]
[333776113,1722480646327,-535.3,0.00013972,2]
[333776114,1722480646336,-500.0,0.00013972,2]
[333776115,1722480646346,-500.0,0.00013972,2]
[333776116,1722480646355,-2223.44,0.00013972,2]
[333776117,1722480646364,-568.07,0.00013972,2]
[333776118,1722480646374,-500.0,0.00013972,2]
[333776119,1722480646383,-151.0,0.00013972,2]
[333776120,1722480646393,-658.02,0.00013972,2]
[333776121,1722480646402,-500.0,0.00013972,2]
[333776122,1722480646411,-1468.28,0.00013972,2]
[333776123,1722480646420,-3871.48,0.00013972,2]
[333776124,1722480646429,-1215.37,0.00013972,2]
[333776125,1722480646439,-301.13484717,0.00013972,2]
[333776126,1722480646448,-1081.71,0.00013972,2]
[333776127,1722480646457,-392.655776,0.00013972,2]
[333776128,1722480646466,-361.1431352,0.00013972,2]
[333776129,1722480646476,-500.0,0.00013972,2]
[333776130,1722480646486,-829.93,0.00013972,2]
[333776131,1722480646498,-392.655776,0.00013972,2]
[333776132,1722480646509,-2085.52,0.00013972,2]
[333776133,1722480646518,-500.0,0.00013972,2]
[333776134,1722480646527,-928.99,0.00013972,2]
[333776135,1722480646537,-500.0,0.00013972,2]
[333776136,1722480646546,-1139.83,0.00013972,2]
[333776137,1722480646555,-692.17,0.00013972,2]
[333776138,1722480646647,-598.51,0.00013972,2]
[333776139,1722480646657,-223.793758,0.00013972,2]
[333776140,1722480646666,-433.767581,0.00013972,2]
[333776141,1722480646675,-223.793758,0.00013972,2]
[333776142,1722480646686,-433.767581,0.00013972,2]
[333776143,1722480646695,-500.0,0.00013972,2]
[333776144,1722480646704,-223.793758,0.00013972,2]
[333776145,1722480646713,-223.793758,0.00013972,2]
[333776146,1722480646722,-433.767581,0.00013972,2]
[333776147,1722480646732,-433.767581,0.00013972,2]
[333776148,1722480646742,-500.0,0.00013972,2]
[333776149,1722480646752,-500.0,0.00013972,2]